bitfinex-derivatives/quotes_BTCF0:USTF0_20210108
["timestamp","ask_amount","ask_price","bid_price","bid_amount"]
[1610138352725,0.13632608,39692.0,39679.0,0.13632608]
[1610138352927,0.13632608,39692.0,39669.0,0.11018]
[1610138353726,0.13632608,39692.0,39578.0,0.12745]
[1610138353727,0.00030762,39691.0,39578.0,0.12745]
[1610138354126,0.00030762,39691.0,39570.0,1.61315]
[1610138355127,0.00030767,39692.0,39570.0,0.11315]
[1610138355332,0.00030769,39690.0,39570.0,0.11315]
[1610138355631,0.00030772,39692.0,39570.0,0.11315]
[1610138356029,0.00030772,39689.0,39570.0,0.11315]
[1610138356328,0.00030774,39691.0,39570.0,0.11315]
[1610138356530,0.00030774,39688.0,39656.0,0.13632608]
[1610138356730,0.00030774,39690.0,39656.0,0.13632608]
[1610138356933,0.00030774,39687.0,39656.0,0.13632608]
[1610138357232,0.00030774,39689.0,39656.0,0.13632608]
[1610138357532,0.00030774,39686.0,39656.0,0.13632608]
[1610138357733,0.00030774,39688.0,39656.0,0.13632608]
[1610138358031,0.08493,39693.0,39656.0,0.13632608]
[1610138358433,0.10609,39702.0,39656.0,0.13632608]
[1610138358634,0.13632608,39657.0,39656.0,0.13632608]
[1610138358834,0.23877608,39657.0,39620.0,0.11715]
[1610138360140,0.23877608,39657.0,39570.0,0.11315]
[1610138360638,0.13632608,39640.0,39608.0,0.13632608]
[1610138360840,0.25447608,39640.0,39608.0,0.13632608]
[1610138362139,0.11815,39640.0,39571.0,0.1569]
[1610138362539,0.13632608,39625.0,39624.0,0.13632608]
[1610138362738,0.10697,39625.0,39624.0,0.13632608]
[1610138364440,0.10697,39625.0,39571.0,0.1569]
[1610138364640,0.10697,39625.0,39608.0,0.13632608]
[1610138366543,0.13632608,39618.0,39608.0,0.13632608]
[1610138367558,0.13632608,39618.0,39595.0,0.11459]
[1610138367843,0.13632608,39618.0,39570.0,0.11315]
[1610138368047,0.13632608,39618.0,39547.0,0.1569]
[1610138368347,0.13632608,39618.0,39537.0,2.38568708]
[1610138368548,0.13632608,39583.0,39582.0,0.13632608]
[1610138368746,0.25764608,39583.0,39582.0,0.13632608]
[1610138370551,0.25764608,39583.0,39530.0,2.39446174]
[1610138370751,0.25764608,39583.0,39527.0,2.39900855]
[1610138371152,0.25764608,39583.0,39531.0,0.00021199]
[1610138371352,0.25764608,39583.0,39531.0,0.11933]
[1610138371556,0.25764608,39583.0,39532.0,0.0002122]
[1610138372655,0.12132,39583.0,39553.0,0.13632608]
[1610138372857,0.12132,39583.0,39531.0,0.11933]
[1610138373756,0.50132705,39625.0,39531.0,0.11933]
[1610138374056,0.09575,39583.0,39531.0,0.11933]
[1610138374656,0.13632608,39547.0,39541.0,0.13632608]
[1610138374856,0.08803,39547.0,39541.0,0.13632608]
[1610138375659,0.08803,39547.0,39498.0,2.39783618]
[1610138375864,0.08803,39547.0,39497.0,2.3954034]
[1610138376064,0.08803,39547.0,39499.0,0.00021226]
[1610138376262,0.08803,39547.0,39499.0,0.08673226]
[1610138376461,0.08803,39547.0,39499.0,0.08652]
[1610138376663,0.13632608,39521.0,39515.0,0.13632608]
[1610138376861,0.13632608,39521.0,39500.0,0.00021228]
[1610138377063,0.12115,39534.0,39500.0,0.00021228]
[1610138377263,0.12115,39534.0,39499.0,0.08652]
[1610138378563,0.13632608,39544.0,39533.0,0.13632608]
[1610138379264,0.13632608,39544.0,39522.0,0.12556]
[1610138379466,0.08803,39547.0,39522.0,0.12556]
[1610138379865,3.3705,39558.0,39500.0,2.8921]
[1610138380565,0.13632608,39524.0,39506.0,0.13632608]
[1610138381267,0.13632608,39524.0,39473.0,2.38438174]
[1610138381468,3.9126,39522.0,39464.0,2.38296958]
[1610138381969,3.9126,39522.0,39460.0,2.38319542]
[1610138382168,3.9126,39522.0,39465.0,0.00021249]
[1610138382468,3.9126,39522.0,39465.0,0.11816]
[1610138382669,3.9126,39522.0,39497.0,0.13632608]
[1610138382868,3.9126,39522.0,39485.0,0.07905]
[1610138384571,0.13632608,39486.0,39478.0,0.13632608]
[1610138386072,0.13632608,39486.0,39465.0,0.11816]
[1610138386571,0.5555,39483.0,39466.0,0.13632608]
[1610138386782,0.12604,39491.0,39466.0,0.13632608]
[1610138386972,0.12604,39491.0,39451.0,0.09742]
[1610138386973,3.1267,39479.0,39451.0,0.09742]
[1610138387372,3.1267,39479.0,39436.0,0.08175]
[1610138388372,0.10785,39483.0,39436.0,0.08175]
[1610138388674,0.13632608,39481.0,39475.0,0.13632608]
[1610138389275,0.13632608,39481.0,39436.0,0.08175]
[1610138390582,0.10785,39483.0,39437.0,0.13632608]
[1610138391179,0.10785,39483.0,39409.0,0.10737]
[1610138391377,3.2998,39471.0,39409.0,0.10737]
[1610138391579,3.40632,39471.0,39409.0,0.10737]
[1610138392477,3.40632,39471.0,39392.0,3.0373]
[1610138392676,0.13632608,39406.0,39405.0,0.13632608]
[1610138392880,0.13632608,39406.0,39366.0,0.1569]
[1610138393080,0.1149,39409.0,39374.0,3.92514]
[1610138394880,0.10652,39471.0,39408.0,0.13632608]
[1610138396482,3.4801,39473.0,39408.0,0.13632608]
[1610138396683,0.13632608,39445.0,39440.0,0.13632608]
[1610138397083,0.21886608,39445.0,39440.0,0.13632608]
[1610138398284,0.21886608,39445.0,39420.0,3.8484]
[1610138398491,0.21886608,39445.0,39401.0,0.12456]
[1610138398683,0.13632608,39430.0,39425.0,0.13632608]
[1610138398885,0.13632608,39430.0,39401.0,0.12456]
[1610138399590,0.13632608,39430.0,39345.0,0.1569]
[1610138399788,3.4889,39427.0,39363.0,3.7816]
[1610138400788,3.4889,39427.0,39385.0,0.13632608]
[1610138401389,3.4889,39427.0,39363.0,3.7816]
[1610138402289,0.08296,39431.0,39360.0,0.11545]
[1610138402492,2.9643,39412.0,39360.0,0.11545]
[1610138402692,0.13632608,39365.0,39360.0,0.11545]
[1610138403197,0.13632608,39365.0,39355.0,0.13632608]
[1610138404693,0.13632608,39356.0,39355.0,0.13632608]
[1610138404894,0.26311608,39356.0,39290.0,0.1569]
[1610138405095,3.6487,39350.0,39267.0,0.3195]
[1610138406698,0.13632608,39343.0,39267.0,0.3195]
[1610138406898,0.13632608,39343.0,39264.0,0.1569]
[1610138407100,0.13632608,39343.0,39242.0,0.1569]
[1610138407598,4.1267,39317.0,39242.0,0.1569]
[1610138407802,4.1267,39317.0,39236.0,0.3195]
[1610138408200,4.1267,39317.0,39219.0,0.1569]
[1610138408900,0.24327608,39291.0,39286.0,0.13632608]
[1610138409300,0.24327608,39291.0,39219.0,0.1569]
[1610138409701,0.10695,39291.0,39197.0,0.3195]
[1610138410703,0.13632608,39289.0,39277.0,0.13632608]
[1610138411105,0.09121,39300.0,39277.0,0.13632608]
[1610138411303,0.09121,39300.0,39277.0,0.24963608]
[1610138412203,4.4622,39321.0,39277.0,0.24963608]
[1610138412803,4.4622,39321.0,39277.0,0.11331]
[1610138413306,0.13632608,39315.0,39277.0,0.11331]
[1610138415308,0.13632608,39293.0,39291.0,0.13632608]
[1610138415507,0.13632608,39293.0,39277.0,0.11331]
[1610138416407,0.13632608,39293.0,39197.0,0.3195]
[1610138416708,0.13632608,39293.0,39183.0,0.1569]
[1610138417207,0.13632608,39293.0,39273.0,0.13632608]
[1610138417511,0.11857,39296.0,39273.0,0.13632608]
[1610138417709,0.08659,39306.0,39273.0,0.13632608]
[1610138419018,0.2783,39321.0,39273.0,0.13632608]
[1610138419410,0.2783,39321.0,39320.0,0.13632608]
[1610138420410,0.2783,39321.0,39308.0,0.12336]
[1610138421011,0.2783,39321.0,39272.0,0.10847]
[1610138421310,0.13632608,39287.0,39278.0,0.13632608]
[1610138421511,0.09109,39300.0,39278.0,0.13632608]
[1610138423315,0.13632608,39279.0,39278.0,0.13632608]
[1610138424314,0.10276,39290.0,39272.0,0.10847]
[1610138424515,0.10276,39290.0,39184.0,0.6253]
[1610138424714,0.10276,39290.0,39267.0,0.10135]
[1610138424917,0.09109,39300.0,39267.0,0.10135]
[1610138425717,0.09109,39300.0,39299.0,0.13632608]
[1610138426118,0.2783,39321.0,39299.0,0.13632608]
[1610138426819,0.09023,39325.0,39299.0,0.13632608]
[1610138427220,0.2931,39421.0,39299.0,0.13632608]
[1610138427720,0.03131436,39420.0,39373.0,0.13632608]
[1610138427926,0.03131436,39420.0,39324.0,0.10516]
[1610138428224,0.00154987,39363.0,39324.0,0.10516]
[1610138428632,0.10924987,39363.0,39324.0,0.10516]
[1610138429724,0.13632608,39326.0,39325.0,0.13632608]
[1610138429928,0.13632608,39326.0,39324.0,0.10516]
[1610138430325,0.08858,39347.0,39324.0,0.10516]
[1610138430524,0.08858,39347.0,39313.0,0.11452]
[1610138431830,0.13632608,39320.0,39313.0,0.11452]
[1610138432430,0.13632608,39320.0,39294.0,0.11101]
[1610138432431,0.21323608,39320.0,39294.0,0.11101]
[1610138432632,0.21323608,39320.0,39286.0,0.09839]
[1610138432831,0.21323608,39320.0,39278.0,0.10403]
[1610138433031,0.2866,39319.0,39204.0,0.02568012]
[1610138433432,0.2866,39319.0,39204.0,0.00797435]
[1610138433634,0.2866,39319.0,39205.0,0.00797531]
[1610138433635,0.2965,39318.0,39205.0,0.00797531]
[1610138433836,0.13632608,39291.0,39279.0,0.13632608]
[1610138434633,0.13632608,39291.0,39206.0,0.1569]
[1610138435035,0.13632608,39291.0,39207.0,0.00797527]
[1610138435233,0.13632608,39291.0,39207.0,0.09809527]
[1610138435735,0.13632608,39272.0,39263.0,0.13632608]
[1610138436339,0.13632608,39272.0,39207.0,0.09012]
[1610138436935,0.13632608,39272.0,39208.0,0.00797767]
[1610138437237,0.13632608,39272.0,39209.0,0.1569]
[1610138437536,0.13632608,39272.0,39208.0,0.00797767]
[1610138437836,0.12661,39296.0,39246.0,0.13632608]
[1610138438237,0.12661,39296.0,39246.0,0.24737608]
[1610138438439,0.12661,39296.0,39247.0,0.00021837]
[1610138438941,0.12661,39296.0,39246.0,0.24737608]
[1610138439140,0.11426,39296.0,39246.0,0.24737608]
[1610138439740,0.13632608,39275.0,39268.0,0.13632608]
[1610138440443,0.13632608,39275.0,39246.0,0.11105]
[1610138441845,0.13632608,39258.0,39253.0,0.13632608]
[1610138442348,0.08812,39277.0,39253.0,0.13632608]
[1610138443046,0.08812,39277.0,39246.0,0.11105]
[1610138443250,0.08812,39277.0,39207.0,0.09012]
[1610138443450,0.08812,39277.0,39187.0,0.1569]
[1610138443749,0.08812,39277.0,39119.0,1.5]
[1610138443750,0.08812,39277.0,39226.0,0.13632608]
[1610138443951,0.00031059,39276.0,39145.0,0.1569]
[1610138444150,0.00031059,39276.0,39131.0,2.34935156]
[1610138444350,0.00031059,39276.0,39183.0,0.09161853]
[1610138444550,0.00031059,39276.0,39183.0,0.0914]
[1610138444551,0.29271059,39276.0,39183.0,0.0914]
[1610138445050,0.00031074,39275.0,39184.0,0.00021863]
[1610138445251,0.00031074,39275.0,39183.0,0.0914]
[1610138446256,0.00031074,39275.0,39221.0,0.13632608]
[1610138446655,0.00031074,39275.0,39212.0,0.11434]
[1610138450361,0.13632608,39213.0,39212.0,0.11434]
[1610138450760,0.13632608,39213.0,39204.0,0.13632608]
[1610138452365,0.13632608,39205.0,39204.0,0.13632608]
[1610138452564,0.09401,39227.0,39204.0,0.13632608]
[1610138453065,0.09401,39227.0,39204.0,0.11132608]
[1610138453566,0.03,39274.0,39204.0,0.11132608]
[1610138454268,0.13632608,39234.0,39226.0,0.13632608]
[1610138457570,0.13632608,39234.0,39197.0,0.09617]
[1610138457970,0.13632608,39234.0,39131.0,0.1569]
[1610138458369,0.08418,39238.0,39132.0,0.00021876]
[1610138458571,0.08418,39238.0,39132.0,1.60596876]
[1610138459172,0.08418,39238.0,39133.0,0.00021874]
[1610138460172,0.08418,39238.0,39133.0,1.50021874]
[1610138460375,0.13632608,39227.0,39219.0,0.13632608]
[1610138461074,0.08418,39238.0,39132.0,2.4945346]
[1610138461673,0.08418,39238.0,39133.0,0.00021878]
[1610138461875,0.12432,39252.0,39133.0,0.00021878]
[1610138462073,0.03,39274.0,39133.0,0.00021878]
[1610138462273,0.000311,39251.0,39133.0,0.00021878]
[1610138462481,2.9385,39248.0,39205.0,0.13632608]
[1610138462774,3.04181,39248.0,39136.0,4.0013]
[1610138463075,0.000311,39247.0,39137.0,0.0002]
[1610138463475,0.272411,39247.0,39137.0,0.0002]
[1610138463875,0.000311,39246.0,39137.0,0.0002]
[1610138464480,0.000311,39246.0,39205.0,0.13632608]
[1610138464677,0.000311,39246.0,39195.0,0.09418]
[1610138465484,0.2721,39247.0,39195.0,0.09418]
[1610138466380,0.2721,39247.0,39202.0,0.13632608]
[1610138466581,0.00031103,39246.0,39202.0,0.13632608]
[1610138466881,0.2721,39247.0,39202.0,0.13632608]
[1610138467084,0.000311,39245.0,39202.0,0.13632608]
[1610138467282,0.498911,39245.0,39195.0,0.09418]
[1610138467594,4.0229,39230.0,39195.0,0.09418]
[1610138467982,4.10328,39230.0,39195.0,0.09418]
[1610138468387,0.13632608,39196.0,39195.0,0.09418]
[1610138469183,0.1036,39215.0,39195.0,0.09418]
[1610138469785,0.1036,39215.0,39189.0,0.122]
[1610138470485,0.1036,39215.0,39196.0,0.13632608]
[1610138470785,0.1036,39215.0,39189.0,0.122]
[1610138471285,0.1036,39215.0,39155.0,2.9911]
[1610138471786,0.1036,39215.0,39156.0,0.0002]
[1610138472090,0.1036,39215.0,39156.0,0.08036]
[1610138472486,0.1036,39215.0,39189.0,0.13632608]
[1610138473688,4.10328,39230.0,39189.0,0.13632608]
[1610138474494,0.08038,39230.0,39201.0,0.13632608]
[1610138474794,0.2721,39247.0,39201.0,0.13632608]
[1610138475192,0.2721,39247.0,39187.0,0.12546]
[1610138475394,0.00031101,39246.0,39187.0,0.12546]
[1610138475693,0.00031101,39246.0,39188.0,0.0002]
[1610138475992,0.2721,39247.0,39188.0,0.0002]
[1610138476492,0.2721,39247.0,39238.0,0.13632608]
[1610138477498,0.08812,39277.0,39238.0,0.23099608]
[1610138477796,0.03,39274.0,39238.0,0.23099608]
[1610138477995,0.00031081,39273.0,39238.0,0.23099608]
[1610138478396,0.03,39274.0,39272.0,0.13632608]
[1610138480097,0.00626155,39320.0,39272.0,0.13632608]
[1610138480398,0.2956,39326.0,39296.0,0.13632608]
[1610138480602,0.03136508,39319.0,39270.0,3.6959]
[1610138480799,0.03136318,39325.0,39270.0,3.6959]
[1610138481199,0.03136091,39318.0,39270.0,3.6959]
[1610138481398,0.10505,39326.0,39270.0,3.6959]
[1610138481399,0.03135935,39324.0,39270.0,3.6959]
[1610138481700,0.10505,39326.0,39271.0,1.5002]
[1610138482101,0.2791,39341.0,39272.0,0.0002]
[1610138482401,0.2791,39341.0,39316.0,0.13632608]
[1610138482601,0.2791,39341.0,39313.0,0.07919]
[1610138482802,0.38406,39341.0,39313.0,0.07919]
[1610138483001,0.10496,39341.0,39313.0,0.07919]
[1610138484403,0.10496,39341.0,39340.0,0.13632608]
[1610138485110,0.10496,39341.0,39340.0,0.13477516]
[1610138485304,0.13632608,39350.0,39340.0,0.13477516]
[1610138485604,0.25048608,39350.0,39322.0,0.11014]
[1610138485804,0.25048608,39350.0,39299.0,3.3617]
[1610138486405,0.13632608,39331.0,39317.0,0.13632608]
[1610138486806,0.08783,39331.0,39317.0,0.13632608]
[1610138487715,0.08783,39331.0,39299.0,3.14268365]
[1610138488113,0.10878,39339.0,39299.0,3.14268365]
[1610138488305,0.10878,39339.0,39299.0,3.26934365]
[1610138489229,0.10878,39339.0,39299.0,0.12666]
[1610138489606,0.10878,39339.0,39284.0,0.10456]
[1610138489906,0.10878,39339.0,39297.0,3.4909]
[1610138490110,0.10878,39339.0,39297.0,3.60912]
[1610138490506,0.10878,39339.0,39337.0,0.13632608]
[1610138490807,0.11416,39350.0,39337.0,0.13632608]
[1610138491107,0.00633876,39372.0,39337.0,0.23274608]
[1610138491509,0.00634883,39378.0,39337.0,0.23274608]
[1610138491907,0.00635027,39381.0,39337.0,0.09642]
[1610138492107,0.00635027,39381.0,39324.0,0.08294]
[1610138492308,0.01890749,39379.0,39324.0,0.08294]
[1610138492509,0.13632608,39338.0,39330.0,0.13632608]
[1610138493306,0.11185,39341.0,39330.0,0.13632608]
[1610138494607,0.11185,39341.0,39334.0,0.13632608]
[1610138495414,0.13632608,39348.0,39334.0,0.13632608]
[1610138496611,0.13632608,39348.0,39323.0,3.484]
[1610138496612,0.13632608,39340.0,39338.0,0.13632608]
[1610138497610,0.07908,39350.0,39338.0,0.13632608]
[1610138498510,0.2984,39383.0,39348.0,0.13632608]
[1610138498710,0.2984,39383.0,39336.0,0.08128]
[1610138499323,0.2988,39392.0,39336.0,0.08128]
[1610138499523,1.40029138,39419.0,39356.0,3.4347]
[1610138499728,0.00636152,39401.0,39356.0,3.4347]
[1610138499933,0.12497152,39401.0,39356.0,3.55807]
[1610138500113,0.11861,39401.0,39356.0,3.55807]
[1610138500614,0.11861,39401.0,39400.0,0.13632608]
[1610138501015,0.13632608,39420.0,39400.0,0.13632608]
[1610138501512,0.10256,39421.0,39400.0,0.13632608]
[1610138502112,0.00645044,39453.0,39400.0,0.13632608]
[1610138502412,0.01924643,39455.0,39417.0,3.4145]
[1610138502612,0.00646278,39468.0,39454.0,0.13632608]
[1610138503013,0.87034892,39471.0,39417.0,3.4961]
[1610138503014,0.41402608,39471.0,39445.0,0.09234]
[1610138503514,0.41402608,39471.0,39449.0,4.2237]
[1610138503812,0.41402608,39471.0,39445.0,0.09234]
[1610138504616,0.13632608,39452.0,39431.0,3.0636]
[1610138504913,0.08679,39452.0,39431.0,3.0636]
[1610138505915,0.08764,39460.0,39431.0,3.0636]
[1610138506317,0.08764,39460.0,39431.0,3.15621]
[1610138506518,0.2777,39471.0,39456.0,0.13632608]
[1610138506716,0.13632608,39457.0,39456.0,0.13632608]
[1610138507017,0.2777,39471.0,39456.0,0.13632608]
[1610138508422,0.08973,39475.0,39456.0,0.13632608]
[1610138508618,0.08973,39475.0,39474.0,0.13632608]
[1610138509018,0.13632608,39493.0,39474.0,0.13632608]
[1610138509418,0.13632608,39493.0,39452.0,3.3399]
[1610138509619,0.25548608,39493.0,39452.0,3.3399]
[1610138510622,0.13632608,39476.0,39471.0,0.13632608]
[1610138512423,0.13632608,39476.0,39452.0,3.3399]
[1610138512623,0.13632608,39476.0,39466.0,0.13632608]
[1610138512823,0.10524,39483.0,39462.0,0.10829]
[1610138514728,0.10524,39483.0,39477.0,0.13632608]
[1610138515830,0.2827,39539.0,39482.0,3.7311]
[1610138516730,0.13632608,39521.0,39482.0,3.7311]
[1610138516929,0.26098608,39521.0,39482.0,3.7311]
[1610138517131,0.26098608,39521.0,39482.0,3.49532298]
[1610138517431,0.26098608,39521.0,39480.0,0.11289]
[1610138517630,0.26098608,39521.0,39465.0,0.11884]
[1610138518531,0.26098608,39521.0,39463.0,4.1132]
[1610138518734,0.12466,39521.0,39476.0,0.13632608]
[1610138519532,0.12466,39521.0,39463.0,4.1132]
[1610138520756,0.13632608,39489.0,39481.0,0.13632608]
[1610138520941,0.12466,39521.0,39481.0,0.13632608]
[1610138521238,0.09077,39493.0,39481.0,0.13632608]
[1610138522646,0.09077,39493.0,39492.0,0.13632608]
[1610138522838,0.13632608,39503.0,39492.0,0.13632608]
[1610138523136,0.12632608,39503.0,39492.0,0.13632608]
[1610138524148,0.07993,39505.0,39492.0,0.13632608]
[1610138524738,0.13632608,39518.0,39504.0,0.13632608]
[1610138525341,0.13632608,39518.0,39488.0,4.0437]
[1610138525841,0.13632608,39518.0,39488.0,3.9652]
[1610138526640,0.12466,39521.0,39509.0,0.13632608]
[1610138526840,0.2827,39539.0,39509.0,0.13632608]
[1610138527240,0.2827,39539.0,39488.0,3.9652]
[1610138527442,0.37857,39539.0,39488.0,3.9652]
[1610138527942,0.03121715,39538.0,39488.0,3.9652]
[1610138528742,0.03121715,39538.0,39494.0,0.13632608]
[1610138530743,0.13632608,39495.0,39494.0,0.13632608]
[1610138530943,0.25559608,39495.0,39494.0,0.13632608]
[1610138531244,0.25559608,39495.0,39470.0,4.0735]
[1610138531844,0.11927,39495.0,39470.0,4.0735]
[1610138532844,0.11927,39495.0,39492.0,0.13632608]
[1610138535452,0.13632608,39521.0,39492.0,0.13632608]
[1610138535849,0.03121207,39520.0,39492.0,0.13632608]
[1610138536051,0.15550207,39520.0,39492.0,0.13632608]
[1610138536350,0.03121135,39519.0,39492.0,0.13632608]
[1610138536751,0.03121135,39519.0,39506.0,0.13632608]
[1610138536951,0.03121135,39519.0,39491.0,3.2281]
[1610138538654,0.03121135,39519.0,39501.0,0.13632608]
[1610138538853,0.03121135,39519.0,39491.0,3.2281]
[1610138540256,0.03121135,39519.0,39375.0,1.5]
[1610138540456,0.03121135,39519.0,39456.0,3.81436]
[1610138541159,0.03121135,39519.0,39473.0,0.13632608]
[1610138541658,0.03121135,39519.0,39456.0,3.7219]
[1610138542759,0.03121135,39519.0,39403.0,0.2281]
[1610138542961,4.11821135,39519.0,39408.0,3.7551]
[1610138543159,4.11821135,39519.0,39444.0,0.13632608]
[1610138543361,0.18592604,39518.0,39444.0,0.13632608]
[1610138543961,0.18592604,39518.0,39408.0,3.7551]
[1610138544163,0.01950903,39516.0,39408.0,3.7551]
[1610138544560,0.00655316,39510.0,39408.0,3.7551]
[1610138544763,0.09964316,39510.0,39408.0,3.7551]
[1610138544963,0.00655704,39504.0,39408.0,3.7551]
[1610138545260,0.13632608,39419.0,39410.0,0.13632608]
[1610138545460,0.24683608,39419.0,39385.0,3.2884]
[1610138545959,0.24683608,39419.0,39386.0,0.00021092]
[1610138546159,0.24683608,39419.0,39385.0,3.2884]
[1610138547062,0.13632608,39386.0,39385.0,3.2884]
[1610138547259,0.13632608,39386.0,39380.0,0.13632608]
[1610138547961,0.13632608,39386.0,39359.0,2.9291]
[1610138549264,0.13632608,39381.0,39359.0,2.9291]
[1610138551163,0.13632608,39371.0,39370.0,0.13632608]
[1610138551467,0.22777608,39371.0,39307.0,0.2994]
[1610138551664,0.22777608,39371.0,39335.0,3.3542]
[1610138552674,0.09145,39371.0,39335.0,3.3542]
[1610138553064,0.09145,39371.0,39361.0,0.13632608]
[1610138554363,0.09145,39371.0,39335.0,3.3542]
[1610138555067,0.09145,39371.0,39270.0,2.38610092]
[1610138555366,0.23713608,39329.0,39327.0,0.13632608]
[1610138556067,0.23713608,39329.0,39273.0,0.2983]
[1610138556267,0.23713608,39329.0,39254.0,2.38920981]
[1610138556468,0.23713608,39329.0,39251.0,2.53853542]
[1610138556469,0.23713608,39329.0,39251.0,2.38926587]
[1610138556667,0.10081,39329.0,39251.0,2.38926587]
[1610138556868,0.10081,39329.0,39246.0,0.2966]
[1610138557068,0.02,39327.0,39242.0,3.3248]
[1610138557269,0.13632608,39252.0,39246.0,0.13632608]
[1610138557571,0.11683,39269.0,39246.0,0.13632608]
[1610138557768,0.11683,39269.0,39219.0,3.0903]
[1610138558071,0.11683,39269.0,39219.0,0.08202]
[1610138558072,0.1142,39258.0,39219.0,0.08202]
[1610138559272,0.13632608,39256.0,39238.0,0.13632608]
[1610138559470,0.1142,39258.0,39238.0,0.13632608]
[1610138561174,0.13632608,39256.0,39238.0,0.13632608]
[1610138561974,0.1142,39258.0,39238.0,0.13632608]
[1610138562374,0.1142,39258.0,39238.0,0.24802608]
[1610138562575,0.11683,39269.0,39238.0,0.24802608]
[1610138562776,3.0179,39303.0,39238.0,0.24802608]
[1610138562975,0.2872,39322.0,39238.0,0.24802608]
[1610138563176,0.13632608,39284.0,39282.0,0.13632608]
[1610138563676,0.12175,39298.0,39282.0,0.13632608]
[1610138563877,0.09157,39308.0,39282.0,0.13632608]
[1610138564076,0.09157,39308.0,39282.0,0.25844608]
[1610138564778,0.2872,39322.0,39282.0,0.25844608]
[1610138565177,0.2872,39322.0,39282.0,0.12212]
[1610138565676,0.2872,39322.0,39321.0,0.13632608]
[1610138565977,0.13632608,39358.0,39321.0,0.13632608]
[1610138566479,0.13632608,39358.0,39321.0,0.24598608]
[1610138566678,0.09145,39371.0,39321.0,0.24598608]
[1610138567280,0.2899,39388.0,39321.0,0.24598608]
[1610138567781,0.13632608,39362.0,39321.0,0.10966]
[1610138569680,0.11228,39366.0,39365.0,0.13632608]
[1610138571282,0.11474,39374.0,39365.0,0.13632608]
[1610138571683,0.11474,39374.0,39373.0,0.13632608]
[1610138572082,0.2899,39388.0,39373.0,0.13632608]
[1610138572583,0.2899,39388.0,39373.0,0.21441608]
[1610138573685,0.13632608,39385.0,39378.0,0.13632608]
[1610138573992,0.13632608,39385.0,39361.0,0.08503]
[1610138574683,0.37984,39388.0,39361.0,0.08503]
[1610138575689,0.13632608,39362.0,39357.0,0.13632608]
[1610138575885,0.13632608,39362.0,39334.0,0.08209]
[1610138576085,0.23116608,39362.0,39334.0,0.08209]
[1610138576984,0.09484,39362.0,39334.0,0.08209]
[1610138577786,0.09484,39362.0,39361.0,0.13632608]
[1610138577987,0.09484,39362.0,39343.0,0.08562]
[1610138578989,0.09484,39362.0,39324.0,3.9786]
[1610138579190,0.09484,39362.0,39248.0,1.5]
[1610138579393,0.09484,39362.0,39300.0,3.976]
[1610138579890,0.00031025,39361.0,39311.0,0.13632608]
[1610138580490,0.00031025,39361.0,39300.0,3.976]
[1610138581091,0.47361025,39361.0,39300.0,3.976]
[1610138581291,0.00031025,39361.0,39218.0,0.1569]
[1610138581492,0.00031025,39361.0,39219.0,1.5]
[1610138581793,0.00031025,39361.0,39291.0,0.13632608]
[1610138583793,0.13632608,39326.0,39312.0,0.13632608]
[1610138583992,0.25887608,39326.0,39312.0,0.13632608]
[1610138585897,0.12255,39326.0,39317.0,0.13632608]
[1610138587899,0.25380608,39318.0,39313.0,0.13632608]
[1610138588301,0.25380608,39318.0,39290.0,0.09267]
[1610138588897,0.25380608,39318.0,39251.0,3.2418]
[1610138588898,4.10890608,39318.0,39251.0,3.2418]
[1610138589899,3.97258,39318.0,39266.0,0.13632608]
[1610138590300,3.97258,39318.0,39256.0,0.11326]
[1610138590702,0.00031056,39317.0,39256.0,0.11326]
[1610138590924,4.06102,39300.0,39256.0,0.11326]
[1610138591306,4.06102,39300.0,39223.0,3.5428]
[1610138591506,0.00031065,39299.0,39223.0,3.5428]
[1610138591704,4.06102,39300.0,39223.0,3.5428]
[1610138591906,0.00031067,39298.0,39244.0,0.13632608]
[1610138592310,0.00031067,39299.0,39244.0,0.13632608]
[1610138592510,4.06102,39300.0,39229.0,0.1009]
[1610138592511,0.00031067,39297.0,39229.0,0.1009]
[1610138592722,0.00031069,39298.0,39229.0,0.1009]
[1610138593114,0.00031072,39296.0,39229.0,0.1009]
[1610138593314,0.00031072,39297.0,39229.0,0.1009]
[1610138593504,0.00031072,39297.0,39223.0,3.5428]
[1610138593708,0.00031072,39295.0,39223.0,3.5428]
[1610138593905,0.00031072,39296.0,39238.0,0.13632608]
[1610138594112,3.19596,39281.0,39238.0,0.13632608]
[1610138595912,0.13632608,39239.0,39199.0,0.1569]
[1610138596112,0.25847608,39239.0,39158.0,0.3195]
[1610138596509,3.1614,39221.0,39158.0,0.3195]
[1610138596713,3.28459,39221.0,39156.0,0.1569]
[1610138596911,3.28459,39221.0,39145.0,0.3195]
[1610138597814,3.28459,39221.0,39187.0,0.13632608]
[1610138598013,0.12319,39221.0,39187.0,0.13632608]
[1610138598513,4.0222,39214.0,39187.0,0.13632608]
[1610138599113,0.12319,39221.0,39187.0,0.13632608]
[1610138599813,0.13632608,39208.0,39195.0,0.13632608]
[1610138600012,0.26342608,39208.0,39195.0,0.13632608]
[1610138600313,0.1271,39208.0,39195.0,0.13632608]
[1610138601013,0.2891,39238.0,39195.0,0.13632608]
[1610138601416,0.2891,39238.0,39195.0,0.22703608]
[1610138601816,0.2891,39238.0,39236.0,0.13632608]
[1610138602014,0.2891,39238.0,39195.0,0.09071]
[1610138603419,0.2891,39238.0,39183.0,0.09951]
[1610138604019,0.2891,39238.0,39198.0,0.13632608]
[1610138604219,3.2667,39237.0,39183.0,0.09951]
[1610138604419,3.2667,39237.0,39175.0,0.10752]
[1610138604618,3.2667,39237.0,39162.0,3.718]
[1610138605222,0.2891,39238.0,39143.0,0.1569]
[1610138605529,3.0161,39217.0,39143.0,0.28422]
[1610138605730,3.14254,39217.0,39143.0,0.12732]
[1610138605935,0.12644,39217.0,39190.0,0.13632608]
[1610138606728,0.2891,39238.0,39190.0,0.23600608]
[1610138607937,0.2891,39238.0,39215.0,0.13632608]
[1610138609824,0.2891,39238.0,39205.0,0.11429]
[1610138610024,0.4776,39236.0,39213.0,0.13632608]
[1610138610323,0.4776,39236.0,39205.0,0.11429]
[1610138611629,0.4776,39236.0,39120.0,2.54504849]
[1610138611827,0.4776,39236.0,39121.0,1.5]
[1610138612028,0.13632608,39220.0,39124.0,2.38790161]